fUST/lending_fUST_20241120
["ID","MTS","AMOUNT","RATE_DAILY","PERIOD"]
[342707129,1732054238930,-9817.68296043,0.00028367,10]
[342707131,1732054238939,-18094.19721679,0.00028449,10]
[342707134,1732054238950,-1345.2756967,0.00028449,10]
[342707290,1732054240533,-294.67066372,0.00028449,10]
[342707291,1732054240544,-46187.00000001,0.00028449,10]
[342707292,1732054240557,-8323.852862,0.00028449,10]
[342707293,1732054240569,-92236.15772366,0.00028449,10]
[342707673,1732054805287,2451.4783029,0.0001722,14]
[342707689,1732055322254,31.33091705,0.0001,7]
[342707729,1732055432782,-307.11219572,0.0001,7]
[342707730,1732055432792,-300.0,0.00010899,2]
[342707731,1732055432801,-300.0,0.00010899,2]
[342707732,1732055432814,-16596.13958852,0.000109,2]
[342707733,1732055432823,-420.0,0.00011978,2]
[342707734,1732055432832,-420.0,0.00011989,2]
[342707735,1732055432841,-348.0,0.00013164,2]
[342707736,1732055432851,-300.0,0.00013188,2]
[342707737,1732055432860,-400.0,0.00013695,2]
[342707738,1732055432870,-2267.05911658,0.00015,7]
[342707739,1732055432879,-7015.625,0.00018,2]
[342707740,1732055432888,-257.1653298,0.00019608,2]
[342707741,1732055432898,-12962.85655067,0.0001999,2]
[342707742,1732055432908,-261.26807243,0.0001999,2]
[342707743,1732055432917,-246.374673,0.0002192,2]
[342707744,1732055432927,-942.54,0.00022,2]
[342707745,1732055432936,-500.0,0.00024209,2]
[342707746,1732055432945,-345.21534335,0.00024852,7]
[342707747,1732055432955,-238.568,0.00024853,8]
[342707748,1732055432964,-500.0,0.00025304,2]
[342707749,1732055432973,-500.0,0.00025305,7]
[342707750,1732055432985,-24900.0,0.00025617,2]
[342707751,1732055432995,-777.0,0.00026126,15]
[342707753,1732055433004,-500.0,0.00026127,7]
[342707755,1732055433013,-860.2637443,0.00026477,2]
[342707757,1732055433023,-500.0,0.00026674,3]
[342707759,1732055433033,-151.0,0.00026741,6]
[342707761,1732055433042,-500.0,0.00026949,7]
[342707763,1732055433051,-300.0,0.000271,2]
[342707765,1732055433066,-608.76870061,0.00027383,2]
[342707767,1732055433076,-164.63517832,0.00027397,2]
[342707769,1732055433086,-151.0,0.00027541,7]
[342707771,1732055433096,-5000.0,0.00027691,30]
[342707772,1732055433105,-500.0,0.000277,7]
[342707773,1732055433114,-500.0,0.000277,7]
[342707774,1732055433124,-500.0,0.000277,7]
[342707775,1732055433133,-500.0,0.000277,7]
[342707776,1732055433142,-500.0,0.000277,7]
[342707777,1732055433152,-500.0,0.000277,7]
[342707778,1732055433161,-500.0,0.000277,7]
[342707779,1732055433171,-500.0,0.000277,7]
[342707780,1732055433180,-500.0,0.000277,7]
[342707781,1732055433190,-500.0,0.000277,7]
[342707782,1732055433199,-500.0,0.000277,7]
[342707783,1732055433209,-500.0,0.000277,7]
[342707784,1732055433219,-500.0,0.000277,7]
[342707785,1732055433228,-500.0,0.000277,7]
[342707786,1732055433237,-500.0,0.000277,7]
[342707787,1732055433246,-500.0,0.000277,7]
[342707788,1732055433256,-586.78566659,0.000277,7]
[342707789,1732055433265,-608.76870061,0.00027722,2]
[342707790,1732055433274,-500.0,0.00027771,7]
[342707791,1732055433283,-395.44,0.00027938,3]
[342707792,1732055433295,-790.88,0.00027948,3]
[342707793,1732055433308,-197.72,0.00027948,3]
[342707794,1732055433321,-593.19,0.00027948,3]
[342707795,1732055433332,-8960.67,0.00027948,10]
[342707796,1732055433341,-3163.54,0.00027958,3]
[342707797,1732055433351,-1581.77,0.00027958,3]
[342707798,1732055433361,-10752.8,0.00027958,10]
[342707799,1732055433371,-12903.36,0.00027968,10]
[342707800,1732055433380,-22105.82613189,0.00027978,3]
[342707801,1732055433390,-1167.70308926,0.0002799,7]
[342707802,1732055433400,-195.00822663,0.00028,30]
[342707803,1732055433409,-500.0,0.00028044,4]
[342707804,1732055433419,-608.76870061,0.00028061,2]
[342707805,1732055433429,-300.0,0.000281,2]
[342707806,1732055433439,-199.48045796,0.00028165,2]
[342707807,1732055433448,-1000.0,0.00028283,2]
[342707808,1732055433457,-151.0,0.00028341,7]
[342707809,1732055433468,-330.0,0.00028349,2]
[342707810,1732055433477,-1187.81206083,0.00028349,2]
[342707811,1732055433486,-623.66716787,0.00028379,2]
[342707812,1732055433496,-1000.0,0.00028389,2]
[342707813,1732055433505,-608.76870061,0.000284,2]
[342707814,1732055433515,-1000.0,0.00028422,2]
[342707815,1732055433525,-1000.0,0.00028422,2]
[342707816,1732055433535,-151.0,0.00028436,7]
[342707817,1732055433545,-151.0,0.00028436,7]
[342707818,1732055433556,-151.0,0.00028436,7]
[342707819,1732055433566,-152.955884,0.00028436,7]
[342707820,1732055433576,-151.0,0.00028436,7]
[342707821,1732055433585,-151.0,0.00028436,7]
[342707822,1732055433594,-151.0,0.00028436,7]
[342707823,1732055433604,-249.64924,0.00028436,7]
[342707824,1732055433613,-151.0,0.00028436,7]
[342707825,1732055433623,-151.0,0.00028436,7]
[342707826,1732055433632,-222.769144,0.00028436,7]
[342707827,1732055433642,-1000.0,0.00028455,2]
[342707828,1732055433651,-501.20866505,0.00028473,5]
[342707829,1732055433661,-631.81302016,0.00028473,5]
[342707830,1732055433671,-500.0,0.00028473,5]
[342707831,1732055433680,-500.0,0.00028473,5]
[342707832,1732055433690,-158.690823,0.000285,7]
[342707833,1732055433699,-151.0,0.000285,7]
[342707834,1732055433708,-151.0,0.000285,7]
[342707835,1732055433718,-151.0,0.000285,7]
[342707836,1732055433727,-151.0,0.000285,7]
[342707837,1732055433737,-151.0,0.000285,7]
[342707838,1732055433747,-235.56775,0.000285,7]
[342707839,1732055433756,-151.0,0.000285,7]
[342707840,1732055433765,-151.0,0.000285,7]
[342707841,1732055433775,-151.0,0.000285,7]
[342707842,1732055433785,-151.0,0.000285,7]
[342707843,1732055433794,-151.0,0.000285,7]
[342707844,1732055433804,-151.0,0.000285,7]
[342707845,1732055433816,-151.0,0.000285,7]
[342707846,1732055433825,-151.0,0.000285,7]
[342707847,1732055433835,-151.0,0.000285,7]
[342707848,1732055433844,-151.0,0.000285,7]
[342707849,1732055433854,-151.0,0.000285,7]
[342707850,1732055433863,-250.154837,0.000285,7]
[342707851,1732055433873,-151.0,0.000285,7]
[342707852,1732055433882,-151.0,0.000285,7]
[342707853,1732055433892,-151.0,0.000285,7]
[342707854,1732055433902,-151.0,0.000285,7]
[342707855,1732055433911,-151.0,0.000285,7]
[342707856,1732055433921,-151.0,0.000285,7]
[342707857,1732055433931,-151.0,0.000285,7]
[342707858,1732055433940,-151.0,0.000285,7]
[342707859,1732055433950,-151.0,0.000285,7]
[342707860,1732055433959,-156.149898,0.000285,7]
[342707861,1732055433968,-151.0,0.000285,7]
[342707862,1732055433978,-151.0,0.000285,7]
[342707863,1732055433992,-151.0,0.000285,7]
[342707864,1732055434002,-151.0,0.000285,7]
[342707865,1732055434011,-151.0,0.000285,7]
[342707866,1732055434020,-151.0,0.000285,7]
[342707867,1732055434031,-151.0,0.000285,7]
[342707868,1732055434040,-151.0,0.000285,7]
[342707869,1732055434050,-151.0,0.000285,7]
[342707870,1732055434062,-151.0,0.000285,7]
[342707871,1732055434072,-151.0,0.000285,7]
[342707872,1732055434081,-248.728798,0.000285,7]
[342707873,1732055434091,-151.0,0.000285,7]
[342707874,1732055434101,-151.0,0.000285,7]
[342707875,1732055434111,-151.0,0.000285,7]
[342707876,1732055434120,-151.0,0.000285,7]
[342707877,1732055434130,-151.0,0.000285,7]
[342707878,1732055434140,-151.0,0.000285,7]
[342707879,1732055434149,-151.0,0.000285,7]
[342707880,1732055434158,-151.0,0.000285,7]
[342707881,1732055434168,-151.0,0.000285,7]
[342707882,1732055434177,-151.0,0.000285,7]
[342707883,1732055434187,-151.0,0.000285,7]
[342707884,1732055434196,-151.0,0.000285,7]
[342707885,1732055434205,-225.222764,0.000285,7]
[342707886,1732055434215,-217.717949,0.000285,7]
[342707887,1732055434224,-217.717949,0.000285,7]
[342707888,1732055434233,-217.717949,0.000285,7]
[342707889,1732055434243,-217.717949,0.000285,7]
[342707890,1732055434252,-217.717949,0.000285,7]
[342707891,1732055434262,-217.717949,0.000285,7]
[342707892,1732055434272,-217.717949,0.000285,7]
[342707893,1732055434282,-217.717957,0.000285,7]
[342707894,1732055434292,-151.0,0.000285,7]
[342707895,1732055434302,-151.0,0.000285,7]
[342707896,1732055434314,-151.0,0.000285,7]
[342707897,1732055434326,-151.0,0.000285,7]
[342707898,1732055434336,-157.357643,0.000285,7]
[342707899,1732055434346,-687.48991,0.000285,7]
[342707900,1732055434355,-687.48991,0.000285,7]
[342707901,1732055434365,-687.48991,0.000285,7]
[342707902,1732055434375,-687.48991,0.000285,7]
[342707903,1732055434385,-687.48991,0.000285,7]
[342707904,1732055434395,-687.48991,0.000285,7]
[342707905,1732055434405,-687.48991,0.000285,7]
[342707906,1732055434414,-687.48991,0.000285,7]
[342707907,1732055434423,-687.48991,0.000285,7]
[342707908,1732055434433,-687.48991,0.000285,7]
[342707909,1732055434442,-687.48991,0.000285,7]
[342707910,1732055434452,-687.48991,0.000285,7]
[342707911,1732055434462,-687.48991,0.000285,7]
[342707912,1732055434471,-687.48991,0.000285,7]
[342707913,1732055434481,-687.48991,0.000285,7]
[342707914,1732055434491,-687.48991,0.000285,7]
[342707915,1732055434501,-687.48991,0.000285,7]
[342707916,1732055434510,-687.48991,0.000285,7]
[342707917,1732055434520,-687.48991,0.000285,7]
[342707918,1732055434529,-687.489905,0.000285,7]
[342707919,1732055434539,-151.0,0.000285,7]
[342707920,1732055434549,-151.0,0.000285,7]
[342707921,1732055434561,-151.0,0.000285,7]
[342707922,1732055434570,-151.0,0.000285,7]
[342707923,1732055434580,-151.0,0.000285,7]
[342707924,1732055434589,-151.0,0.000285,7]
[342707925,1732055434599,-291.752061,0.000285,7]
[342707926,1732055434609,-151.0,0.000285,7]
[342707927,1732055434618,-151.0,0.000285,7]
[342707928,1732055434627,-151.0,0.000285,7]
[342707929,1732055434637,-151.0,0.000285,7]
[342707930,1732055434646,-151.0,0.000285,7]
[342707931,1732055434656,-210.69316,0.000285,7]
[342707932,1732055434666,-151.0,0.000285,7]
[342707933,1732055434675,-151.0,0.000285,7]
[342707934,1732055434685,-151.0,0.000285,7]
[342707935,1732055434695,-151.0,0.000285,7]
[342707936,1732055434705,-151.0,0.000285,7]
[342707937,1732055434714,-151.0,0.000285,7]
[342707938,1732055434724,-151.0,0.000285,7]
[342707939,1732055434734,-151.0,0.000285,7]
[342707940,1732055434743,-151.0,0.000285,7]
[342707941,1732055434753,-299.495986,0.000285,7]
[342707942,1732055434762,-151.0,0.000285,7]
[342707943,1732055434772,-151.0,0.000285,7]
[342707944,1732055434781,-151.0,0.000285,7]
[342707945,1732055434791,-151.0,0.000285,7]
[342707946,1732055434801,-151.0,0.000285,7]
[342707947,1732055434813,-160.754765,0.000285,7]
[342707948,1732055434822,-216.02777,0.000285,7]
[342707949,1732055434831,-216.02777,0.000285,7]
[342707950,1732055434841,-216.02777,0.000285,7]
[342707951,1732055434851,-216.02777,0.000285,7]
[342707952,1732055434860,-216.02777,0.000285,7]
[342707953,1732055434870,-216.02777,0.000285,7]
[342707954,1732055434879,-216.02777,0.000285,7]
[342707955,1732055434889,-216.02777,0.000285,7]
[342707956,1732055434899,-216.02777,0.000285,7]
[342707957,1732055434909,-216.02777,0.000285,7]
[342707958,1732055434919,-216.02777,0.000285,7]
[342707959,1732055434929,-216.02777,0.000285,7]
[342707960,1732055434939,-216.02777,0.000285,7]
[342707961,1732055434948,-216.02777,0.000285,7]
[342707962,1732055434958,-216.02777,0.000285,7]
[342707963,1732055434968,-216.02777,0.000285,7]
[342707964,1732055434978,-216.02777,0.000285,7]
[342707965,1732055434991,-216.02777,0.000285,7]
[342707966,1732055435001,-216.02777,0.000285,7]
[342707967,1732055435011,-216.02776,0.000285,7]
[342707968,1732055435021,-151.0,0.000285,7]
[342707969,1732055435031,-151.0,0.000285,7]
[342707970,1732055435040,-151.0,0.000285,7]
[342707971,1732055435050,-151.0,0.000285,7]
[342707972,1732055435061,-151.0,0.000285,7]
[342707973,1732055435071,-151.0,0.000285,7]
[342707974,1732055435081,-151.0,0.000285,7]
[342707975,1732055435090,-151.0,0.000285,7]
[342707976,1732055435100,-151.0,0.000285,7]
[342707977,1732055435110,-151.0,0.000285,7]
[342707978,1732055435120,-151.0,0.000285,7]
[342707979,1732055435130,-151.0,0.000285,7]
[342707980,1732055435140,-151.0,0.000285,7]
[342707981,1732055435150,-200.178596,0.000285,7]
[342707982,1732055435160,-185.295989,0.000285,7]
[342707983,1732055435169,-185.295989,0.000285,7]
[342707984,1732055435178,-185.295989,0.000285,7]
[342707985,1732055435188,-185.295989,0.000285,7]
[342707986,1732055435197,-151.0,0.000285,7]
[342707987,1732055435207,-185.295989,0.000285,7]
[342707988,1732055435216,-185.295989,0.000285,7]
[342707989,1732055435226,-151.0,0.000285,7]
[342707990,1732055435235,-185.295989,0.000285,7]
[342707991,1732055435245,-185.295989,0.000285,7]
[342707992,1732055435255,-185.295989,0.000285,7]
[342707993,1732055435264,-185.295989,0.000285,7]
[342707994,1732055435274,-185.295989,0.000285,7]
[342707995,1732055435283,-185.295989,0.000285,7]
[342707996,1732055435294,-185.295989,0.000285,7]
[342707997,1732055435303,-185.295989,0.000285,7]
[342707998,1732055435319,-185.295989,0.000285,7]
[342707999,1732055435330,-185.295989,0.000285,7]
[342708000,1732055435340,-185.295989,0.000285,7]
[342708001,1732055435350,-185.295989,0.000285,7]
[342708002,1732055435360,-185.295989,0.000285,7]
[342708003,1732055435370,-185.295996,0.000285,7]
[342708004,1732055435379,-151.0,0.000285,7]
[342708005,1732055435389,-151.0,0.000285,7]
[342708006,1732055435399,-151.0,0.000285,7]
[342708007,1732055435533,-260.712832,0.000285,7]
[342708008,1732055435543,-207.94734,0.000285,7]
[342708009,1732055435552,-207.94734,0.000285,7]
[342708010,1732055435564,-207.94734,0.000285,7]
[342708011,1732055435574,-207.94734,0.000285,7]
[342708012,1732055435583,-207.94734,0.000285,7]
[342708013,1732055435593,-207.94734,0.000285,7]
[342708014,1732055435603,-207.94734,0.000285,7]
[342708015,1732055435612,-207.94734,0.000285,7]
[342708016,1732055435622,-207.94734,0.000285,7]
[342708017,1732055435632,-207.94734,0.000285,7]
[342708018,1732055435642,-207.94734,0.000285,7]
[342708019,1732055435651,-207.94734,0.000285,7]
[342708020,1732055435661,-207.94734,0.000285,7]
[342708021,1732055435670,-207.94734,0.000285,7]
[342708022,1732055435680,-207.94734,0.000285,7]
[342708023,1732055435690,-207.94734,0.000285,7]
[342708024,1732055435699,-207.94734,0.000285,7]
[342708025,1732055435708,-207.94734,0.000285,7]
[342708026,1732055435718,-207.94734,0.000285,7]
[342708027,1732055435727,-207.94734,0.000285,7]
[342708028,1732055435737,-164.852149,0.000285,7]
[342708029,1732055435746,-164.852149,0.000285,7]
[342708030,1732055435755,-164.852149,0.000285,7]
[342708031,1732055435765,-151.0,0.000285,7]
[342708032,1732055435775,-164.852149,0.000285,7]
[342708033,1732055435784,-151.0,0.000285,7]
[342708034,1732055435794,-164.852149,0.000285,7]
[342708035,1732055435803,-151.0,0.000285,7]
[342708036,1732055435814,-164.852149,0.000285,7]
[342708037,1732055435824,-151.0,0.000285,7]
[342708038,1732055435833,-164.852149,0.000285,7]
[342708039,1732055435843,-151.0,0.000285,7]
[342708040,1732055435853,-151.0,0.000285,7]
[342708041,1732055435862,-164.852149,0.000285,7]
[342708042,1732055435872,-151.0,0.000285,7]
[342708043,1732055435882,-164.852149,0.000285,7]
[342708044,1732055435892,-151.0,0.000285,7]
[342708045,1732055435902,-164.852149,0.000285,7]
[342708046,1732055435911,-151.0,0.000285,7]
[342708047,1732055435921,-164.852149,0.000285,7]
[342708048,1732055435931,-151.0,0.000285,7]
[342708049,1732055435940,-164.852149,0.000285,7]
[342708050,1732055435950,-151.0,0.000285,7]
[342708051,1732055435960,-164.852149,0.000285,7]
[342708052,1732055435969,-151.0,0.000285,7]
[342708053,1732055435980,-164.852149,0.000285,7]
[342708054,1732055435992,-151.0,0.000285,7]
[342708055,1732055436002,-164.852149,0.000285,7]
[342708056,1732055436012,-151.0,0.000285,7]
[342708057,1732055436023,-164.852149,0.000285,7]
[342708058,1732055436033,-151.0,0.000285,7]
[342708059,1732055436043,-164.852149,0.000285,7]
[342708060,1732055436054,-218.15819,0.000285,7]
[342708061,1732055436066,-164.852149,0.000285,7]
[342708062,1732055436076,-164.852149,0.000285,7]
[342708063,1732055436086,-164.852141,0.000285,7]
[342708064,1732055436095,-151.0,0.000285,7]
[342708065,1732055436105,-151.0,0.000285,7]
[342708066,1732055436114,-12595.35969028,0.00028504,2]
[342708067,1732055436123,-220.16095585,0.00028504,2]
[342708068,1732055436133,-196481.29659598,0.00028504,10]
[342708069,1732055436230,-824.13229965,0.00028504,10]
[342708070,1732055436242,-288.78,0.00028504,10]
[342708084,1732055438975,-400.0,0.00013973,2]
[342708086,1732055438986,-400.0,0.00020447,2]
[342708088,1732055438997,-745.021,0.00026126,15]
[342708090,1732055439007,-400.0,0.00026921,2]
[342708092,1732055439016,-3409.47903,0.00028494,10]
[342708100,1732055439079,-4057.75097,0.00028494,10]
[342708102,1732055439089,-119142.24902823,0.00028504,10]
[342708104,1732055439100,-1404.57538128,0.00028504,10]
[342708106,1732055439111,-6163.7068084,0.00028504,10]
[342708127,1732055439296,-17800.2,0.00028504,10]
[342708277,1732055440692,-184606.76475607,0.00028504,10]
[342708279,1732055440704,-72473.01200595,0.00028504,10]
[342708281,1732055440715,-268883.59657341,0.00028504,10]
[342708284,1732055440726,-363.34754354,0.00028504,10]
[342708614,1732055443899,-11069.11159493,0.00028504,10]
[342708616,1732055443910,-945.68000002,0.00028504,10]
[342708618,1732055443922,-9353.84847644,0.00028504,10]
[342708904,1732055446672,-747.26,0.00026126,15]
[342708906,1732055446682,-309439.10320473,0.00028504,10]
[342709290,1732056631954,-400.0,0.00013973,2]
[342709292,1732056631964,-7015.625,0.00018,2]
[342709294,1732056631974,-400.0,0.00020447,2]
[342709296,1732056631983,-848.28,0.00022,2]
[342709298,1732056631992,-246.3746739,0.00024481,2]
[342709300,1732056632002,-497.2293225,0.00024528,2]
[342709302,1732056632011,-1997.7705299,0.00024872,2]
[342709304,1732056632020,-500.0,0.00025305,7]
[342709306,1732056632030,-161.513634,0.00025306,2]
[342709308,1732056632039,-500.0,0.00025364,7]
[342709310,1732056632048,-500.0,0.00025364,7]
[342709312,1732056632057,-479.67418289,0.00025364,7]
[342709315,1732056632070,-20.32581711,0.00025364,7]
[342709317,1732056632079,-19495.486259,0.00025365,2]
[342709319,1732056632088,-190.79012765,0.00025616,7]
[342709320,1732056632097,-421.63,0.00025638,7]
[342709322,1732056632107,-222.992,0.00026129,12]
[342709325,1732056632117,-687.0,0.00026129,15]
[342709327,1732056632127,-160.74063484,0.000263,2]
[342709329,1732056632137,-160.0,0.0002651,3]
[342709331,1732056632146,-400.0,0.00026921,2]
[342709332,1732056632156,-500.0,0.00026949,7]
[342709335,1732056632165,-284.26452421,0.00027397,2]
[342709337,1732056632175,-316.16000412,0.00027699,2]
[342709338,1732056632184,-153.0,0.00027945,30]
[342709341,1732056632193,-153.0,0.00027945,30]
[342709342,1732056632203,-153.0,0.00027945,30]
[342709344,1732056632212,-150.69751924,0.00028304,2]
[342709346,1732056632221,-150.69751924,0.0002836,2]
[342709348,1732056632231,-2043.11,0.0002839,3]
[342709350,1732056632240,-1021.56,0.0002839,3]
[342709351,1732056632249,-510.78,0.0002839,3]
[342709353,1732056632259,-255.39,0.0002839,3]
[342709355,1732056632268,-766.18,0.0002839,3]
[342709357,1732056632277,-5028.10666188,0.0002839,10]
[342709359,1732056632289,-465.58652765,0.0002839,10]
[342709363,1732056632311,-728.99681047,0.0002839,10]
[342709365,1732056632321,-5185.57,0.0002839,10]
[342709367,1732056632330,-3261.6614909,0.000284,2]
[342709921,1732056638034,-268.95,0.00026129,15]
[342709923,1732056638047,-389.95,0.00026129,15]
[342709925,1732056638056,-4321.31,0.0002839,10]
[342709927,1732056638066,-313.095992,0.00028399,2]
[342709929,1732056638075,-14997.84400801,0.000284,2]
[342709931,1732056638086,-261.85863363,0.000284,2]
[342709943,1732056638217,-358.3777754,0.000284,2]
[342709946,1732056638229,-5253.85911781,0.000284,2]
[342710080,1732056639788,-1072.9358481,0.000284,2]
[342710082,1732056639800,-2476.05497675,0.000284,2]
[342710084,1732056639812,-27534.20138715,0.000284,2]
[342710089,1732056639850,-91670.50627715,0.000284,2]
[342710097,1732056639917,-7096.66821343,0.000284,2]
[342710099,1732056639927,-330.0,0.00028404,2]
[342710101,1732056639936,-150.69751924,0.00028415,2]
[342710103,1732056639946,-304.38435031,0.00028415,2]
[342710105,1732056639955,-150.112233,0.000285,18]
[342710107,1732056639965,-6297.67984514,0.00028515,2]
[342710109,1732056639974,-220.16095584,0.00028515,2]
[342710111,1732056639983,-201624.36573936,0.00028515,10]
[342710362,1732056642982,-1281.56121924,0.00028515,10]
[342710366,1732056643021,-17174.77609999,0.00028515,10]
[342710545,1732057832252,-400.0,0.00013973,2]
[342710547,1732057832261,-95.73960683,0.00018,2]
[342710552,1732057832305,-701.31478886,0.00018,2]
[342710606,1732057838405,-4583.95000001,0.00018,2]
[342710623,1732057838689,-1634.6206043,0.00018,2]
[342710625,1732057838699,-400.0,0.00020447,2]
[342710627,1732057838708,-763.45,0.000221,2]
[342710629,1732057838717,-266.33630653,0.00025162,2]
[342710631,1732057838728,-500.0,0.0002526,7]
[342710634,1732057838740,-500.0,0.0002526,7]
[342710636,1732057838749,-500.0,0.0002526,7]
[342710639,1732057838759,-500.0,0.0002526,7]
[342710641,1732057838771,-263.09938577,0.0002526,7]
[342710796,1732057839957,-236.90061423,0.0002526,7]
[342710799,1732057839966,-96.01927101,0.0002526,7]
[342711173,1732057843134,-235.3033972,0.00023785,2]
[342711175,1732057843144,-403.98072899,0.0002526,7]
[342711177,1732057843153,-2724.48,0.0002526,7]
[342711179,1732057843163,-500.0,0.0002526,7]
[342711181,1732057843172,-500.0,0.0002526,7]
[342711183,1732057843181,-500.0,0.0002526,7]
[342711185,1732057843190,-500.0,0.0002526,7]
[342711187,1732057843199,-500.0,0.00025261,7]
[342711189,1732057843208,-503.93776941,0.00025261,7]
[342711191,1732057843218,-322.14019396,0.00025261,7]
[342711193,1732057843229,-177.85980604,0.00025261,7]
[342711195,1732057843239,-500.0,0.00025261,7]
[342711197,1732057843248,-500.0,0.00025261,7]
[342711199,1732057843258,-500.0,0.00025261,7]
[342711201,1732057843268,-500.0,0.00025261,7]
[342711203,1732057843277,-638.32895939,0.00025261,7]
[342711205,1732057843286,-500.0,0.00025261,7]
[342711207,1732057843295,-500.0,0.00025261,7]
[342711209,1732057843305,-500.0,0.00025261,7]
[342711211,1732057843314,-500.0,0.00025261,7]
[342711213,1732057843323,-500.0,0.00025261,7]
[342711215,1732057843333,-500.0,0.00025261,7]
[342711217,1732057843342,-500.0,0.00025261,7]
[342711219,1732057843351,-447.16085863,0.00025261,7]
[342711257,1732057843696,-52.83914137,0.00025261,7]
[342711259,1732057843706,-500.0,0.00025261,7]
[342711261,1732057843715,-200.73885863,0.00025261,7]
[342711264,1732057843728,-299.26114137,0.00025261,7]
[342711266,1732057843742,-500.0,0.00025261,7]
[342711268,1732057843751,-566.21330286,0.00025261,7]
[342711270,1732057843760,-606.195209,0.00025261,7]
[342711272,1732057843771,-500.0,0.00025261,7]
[342711274,1732057843781,-629.59,0.00025261,7]
[342711276,1732057843790,-500.0,0.00025261,7]
[342711278,1732057843799,-500.0,0.00025261,7]
[342711280,1732057843811,-500.0,0.00025261,7]
[342711282,1732057843820,-500.0,0.00025261,7]
[342711284,1732057843829,-500.0,0.00025261,7]
[342711286,1732057843839,-500.0,0.00025262,7]
[342711288,1732057843848,-522.80229963,0.00025262,7]
[342711290,1732057843857,-507.25535629,0.00025262,7]
[342711292,1732057843867,-524.34071246,0.00025262,7]
[342711294,1732057843875,-500.0,0.00025262,7]
[342711296,1732057843886,-500.0,0.00025262,7]
[342711298,1732057843895,-500.0,0.00025262,7]
[342711300,1732057843904,-220.04197839,0.00025262,7]
[342711302,1732057843915,-279.95802161,0.00025262,7]
[342711304,1732057843924,-490.7669784,0.00025262,7]
[342711712,1732058409580,413.41249916,0.0001722,14]
[342711713,1732058705665,-500.0,0.00021917,7]
[342711714,1732058705691,-500.0,0.00021917,7]
[342711715,1732058705724,-500.0,0.00021917,7]
[342711716,1732058705751,-500.0,0.00021917,7]
[342711717,1732058705786,-500.0,0.00021917,7]
[342711718,1732058705815,-531.26354484,0.00021917,7]
[342711719,1732058705842,-500.0,0.00021917,7]
[342711720,1732058705867,-500.0,0.00021917,7]
[342711721,1732058705893,-500.0,0.00021917,7]
[342711722,1732058705919,-500.0,0.00021917,7]
[342711723,1732058705947,-500.0,0.00021917,7]
[342711724,1732058705975,-500.0,0.00021917,7]
[342711725,1732058706007,-500.0,0.00021917,7]
[342711726,1732058706037,-500.0,0.00021917,7]
[342711727,1732058706064,-500.0,0.00021917,7]